[Event "Titled Tuesday Blitz February 21 Early 2023"]
[White "Todev, Simeon"]
[Black "Larina, Maria"]
[WhiteFideId "2925133"]
[BlackFideId "24113182"]
[WhiteElo "2033"]
[BlackElo "1948"]
[Result "1-0"]
[Round "05"]
[TimeControl "180+2"]
[Date "2023.02.21"]
[WhiteClock "0:00:04"]
[BlackClock "0:00:01"]

1. e4 {[%clk 0:02:25]}  c6 {[%clk 0:02:58]} 2. c4 {[%clk 0:02:21]}  d5 {[%clk 0:02:57]} 3. exd5 {[%clk 0:02:19]}  cxd5 {[%clk 0:02:58]} 4. Nc3 {[%clk 0:02:19]}  d4 {[%clk 0:02:50]} 5. Ne4 {[%clk 0:02:05]}  f5 {[%clk 0:02:42]} 6. Ng3 {[%clk 0:01:51]}  Nf6 {[%clk 0:02:39]} 7. Nf3 {[%clk 0:01:49]}  Nc6 {[%clk 0:02:36]} 8. Bd3 {[%clk 0:01:47]}  g6 {[%clk 0:02:26]} 9. O-O {[%clk 0:01:43]}  Bg7 {[%clk 0:02:20]} 10. Re1 {[%clk 0:01:38]}  O-O {[%clk 0:02:17]} 11. a3 {[%clk 0:01:28]}  Re8 {[%clk 0:01:55]} 12. b4 {[%clk 0:01:24]}  Ng4 {[%clk 0:01:10]} 13. Bb2 {[%clk 0:00:57]}  e5 {[%clk 0:01:03]} 14. h3 {[%clk 0:00:50]}  Nh6 {[%clk 0:01:03]} 15. b5 {[%clk 0:00:42]}  Nb8 {[%clk 0:00:55]} 16. c5 {[%clk 0:00:31]}  e4 {[%clk 0:00:41]} 17. Bc4+ {[%clk 0:00:29]}  Kh8 {[%clk 0:00:33]} 18. Nh2 {[%clk 0:00:29]}  Be6 {[%clk 0:00:23]} 19. Bxe6 {[%clk 0:00:29]}  Rxe6 {[%clk 0:00:24]} 20. d3 {[%clk 0:00:30]}  Qe8 {[%clk 0:00:18]} 21. dxe4 {[%clk 0:00:26]}  fxe4 {[%clk 0:00:19]} 22. Bxd4 {[%clk 0:00:26]}  Nd7 {[%clk 0:00:14]} 23. Bxg7+ {[%clk 0:00:21]}  Kxg7 {[%clk 0:00:15]} 24. Nxe4 {[%clk 0:00:21]}  Nf6 {[%clk 0:00:07]} 25. Nxf6 {[%clk 0:00:20]}  Rxe1+ {[%clk 0:00:07]} 26. Qxe1 {[%clk 0:00:19]}  Qxe1+ {[%clk 0:00:08]} 27. Rxe1 {[%clk 0:00:19]}  Kxf6 {[%clk 0:00:09]} 28. Rd1 {[%clk 0:00:18]}  Nf5 {[%clk 0:00:08]} 29. Nf3 {[%clk 0:00:18]}  Rc8 {[%clk 0:00:08]} 30. Rd7 {[%clk 0:00:15]}  Rxc5 {[%clk 0:00:07]} 31. Rxb7 {[%clk 0:00:16]}  Rc1+ {[%clk 0:00:07]} 32. Kh2 {[%clk 0:00:15]}  Rc2 {[%clk 0:00:06]} 33. Rxa7 {[%clk 0:00:13]}  Rxf2 {[%clk 0:00:06]} 34. b6 {[%clk 0:00:14]}  Rb2 {[%clk 0:00:06]} 35. b7 {[%clk 0:00:15]}  Nd6 {[%clk 0:00:06]} 36. Ra6 {[%clk 0:00:14]}  Ke7 {[%clk 0:00:06]} 37. Nd4 {[%clk 0:00:08]}  Nxb7 {[%clk 0:00:05]} 38. Ra7 {[%clk 0:00:07]}  Kf6 {[%clk 0:00:04]} 39. a4 {[%clk 0:00:06]}  Kg5 {[%clk 0:00:01]} 40. a5 {[%clk 0:00:05]}  Nc5 {[%clk 0:00:01]} 41. Rc7 {[%clk 0:00:04]} 1-0


[Site "https://www.chess.com"]

[Event "Titled Tuesday Blitz February 21 Early 2023"]
[White "Wickramasinghe, Minethma Lasandi"]
[Black "Smith, Garrett L"]
[WhiteFideId "9966170"]
[BlackFideId "2024829"]
[WhiteElo "1483"]
[BlackElo "2047"]
[Result "0-1"]
[Round "05"]
[TimeControl "180+2"]
[Date "2023.02.21"]
[WhiteClock "0:00:32"]
[BlackClock "0:00:56"]

1. d4 {[%clk 0:03:00]}  Nf6 {[%clk 0:02:59]} 2. c4 {[%clk 0:03:00]}  g6 {[%clk 0:03:00]} 3. Nc3 {[%clk 0:03:00]}  d5 {[%clk 0:03:00]} 4. cxd5 {[%clk 0:02:59]}  Nxd5 {[%clk 0:03:01]} 5. e4 {[%clk 0:02:59]}  Nxc3 {[%clk 0:03:01]} 6. bxc3 {[%clk 0:03:00]}  Bg7 {[%clk 0:03:02]} 7. g3 {[%clk 0:03:00]}  c5 {[%clk 0:03:00]} 8. Ne2 {[%clk 0:02:56]}  Bg4 {[%clk 0:02:48]} 9. Be3 {[%clk 0:02:38]}  Bf3 {[%clk 0:02:41]} 10. Rg1 {[%clk 0:02:38]}  Bxe4 {[%clk 0:02:40]} 11. Bg2 {[%clk 0:02:38]}  Bxg2 {[%clk 0:02:35]} 12. Rxg2 {[%clk 0:02:39]}  O-O {[%clk 0:02:19]} 13. Rb1 {[%clk 0:02:37]}  Qd7 {[%clk 0:01:56]} 14. Qb3 {[%clk 0:02:25]}  Nc6 {[%clk 0:01:37]} 15. Qxb7 {[%clk 0:02:22]}  Qd5 {[%clk 0:01:30]} 16. Nf4 {[%clk 0:02:16]}  Qxa2 {[%clk 0:01:29]} 17. Rd1 {[%clk 0:01:53]}  cxd4 {[%clk 0:01:25]} 18. cxd4 {[%clk 0:01:40]}  Qa5+ {[%clk 0:01:21]} 19. Kf1 {[%clk 0:01:37]}  Nb4 {[%clk 0:01:07]} 20. Qxe7 {[%clk 0:01:29]}  Qb5+ {[%clk 0:01:05]} 21. Kg1 {[%clk 0:01:24]}  Rfe8 {[%clk 0:01:05]} 22. Qc5 {[%clk 0:01:23]}  Qxc5 {[%clk 0:00:58]} 23. dxc5 {[%clk 0:01:23]}  a5 {[%clk 0:00:59]} 24. Nd5 {[%clk 0:00:49]}  Nxd5 {[%clk 0:00:57]} 25. Rxd5 {[%clk 0:00:49]}  a4 {[%clk 0:00:57]} 26. Bd4 {[%clk 0:00:32]}  Re1# {[%clk 0:00:56]} 0-1


[Site "https://www.chess.com"]

[Event "Titled Tuesday Blitz February 21 Early 2023"]
[White "Fries-Nielsen, Jens Ove"]
[Black "Winkels, Marcel"]
[WhiteFideId "1400142"]
[BlackFideId "1003887"]
[WhiteElo "2377"]
[BlackElo "1960"]
[Result "1-0"]
[Round "05"]
[TimeControl "180+2"]
[Date "2023.02.21"]
[WhiteClock "0:02:04"]
[BlackClock "0:00:21"]

1. e4 {[%clk 0:02:56]}  c5 {[%clk 0:02:58]} 2. Nf3 {[%clk 0:02:55]}  d6 {[%clk 0:02:57]} 3. Bb5+ {[%clk 0:02:56]}  Nd7 {[%clk 0:02:56]} 4. a4 {[%clk 0:02:56]}  a6 {[%clk 0:02:54]} 5. Bxd7+ {[%clk 0:02:56]}  Bxd7 {[%clk 0:02:53]} 6. a5 {[%clk 0:02:56]}  Nf6 {[%clk 0:02:50]} 7. d3 {[%clk 0:02:56]}  g6 {[%clk 0:02:50]} 8. Nc3 {[%clk 0:02:56]}  Bg7 {[%clk 0:02:50]} 9. Bg5 {[%clk 0:02:56]}  O-O {[%clk 0:02:47]} 10. Qd2 {[%clk 0:02:56]}  Re8 {[%clk 0:02:44]} 11. O-O {[%clk 0:02:56]}  e6 {[%clk 0:02:44]} 12. e5 {[%clk 0:02:54]}  dxe5 {[%clk 0:02:37]} 13. Nxe5 {[%clk 0:02:54]}  Rc8 {[%clk 0:02:04]} 14. Ng4 {[%clk 0:02:44]}  e5 {[%clk 0:02:03]} 15. Nd5 {[%clk 0:02:42]}  Bxg4 {[%clk 0:01:56]} 16. Bxf6 {[%clk 0:02:43]}  Bxf6 {[%clk 0:01:54]} 17. Nb6 {[%clk 0:02:43]}  Rc6 {[%clk 0:01:46]} 18. Ra4 {[%clk 0:02:44]}  Be6 {[%clk 0:01:43]} 19. Re4 {[%clk 0:02:42]}  Bd5 {[%clk 0:01:41]} 20. Re2 {[%clk 0:02:42]}  Bg7 {[%clk 0:01:32]} 21. Rfe1 {[%clk 0:02:42]}  c4 {[%clk 0:01:29]} 22. d4 {[%clk 0:02:33]}  e4 {[%clk 0:01:26]} 23. c3 {[%clk 0:02:34]}  h6 {[%clk 0:01:22]} 24. f3 {[%clk 0:02:33]}  f5 {[%clk 0:01:16]} 25. Qf4 {[%clk 0:02:33]}  Qe7 {[%clk 0:01:10]} 26. Nxd5 {[%clk 0:02:31]}  Qd6 {[%clk 0:01:09]} 27. Qxd6 {[%clk 0:02:29]}  Rxd6 {[%clk 0:01:08]} 28. fxe4 {[%clk 0:02:29]}  fxe4 {[%clk 0:01:07]} 29. Ne3 {[%clk 0:02:25]}  h5 {[%clk 0:01:01]} 30. Nxc4 {[%clk 0:02:24]}  Rde6 {[%clk 0:00:58]} 31. d5 {[%clk 0:02:22]}  R6e7 {[%clk 0:00:57]} 32. Nd6 {[%clk 0:02:20]}  Rd8 {[%clk 0:00:55]} 33. Nxe4 {[%clk 0:02:15]}  Rxd5 {[%clk 0:00:52]} 34. Nf6+ {[%clk 0:02:14]}  Bxf6 {[%clk 0:00:51]} 35. Rxe7 {[%clk 0:02:15]}  Bxe7 {[%clk 0:00:51]} 36. Rxe7 {[%clk 0:02:15]}  Rb5 {[%clk 0:00:50]} 37. b4 {[%clk 0:02:15]}  Kf8 {[%clk 0:00:47]} 38. Rc7 {[%clk 0:02:15]}  g5 {[%clk 0:00:39]} 39. Kf2 {[%clk 0:02:15]}  h4 {[%clk 0:00:39]} 40. h3 {[%clk 0:02:14]}  Rf5+ {[%clk 0:00:37]} 41. Ke3 {[%clk 0:02:14]}  Rb5 {[%clk 0:00:38]} 42. Ke4 {[%clk 0:02:12]}  Kg8 {[%clk 0:00:33]} 43. Rc5 {[%clk 0:02:07]}  Kf7 {[%clk 0:00:24]} 44. Rxb5 {[%clk 0:02:06]}  axb5 {[%clk 0:00:24]} 45. Kf5 {[%clk 0:02:03]}  Ke7 {[%clk 0:00:15]} 46. Kxg5 {[%clk 0:02:03]}  Kd6 {[%clk 0:00:15]} 47. Kxh4 {[%clk 0:02:04]}  Kd5 {[%clk 0:00:16]} 48. g4 {[%clk 0:02:04]}  Kc4 {[%clk 0:00:16]} 49. g5 {[%clk 0:02:05]}  Kxc3 {[%clk 0:00:17]} 50. g6 {[%clk 0:02:06]}  Kxb4 {[%clk 0:00:18]} 51. g7 {[%clk 0:02:06]}  Kxa5 {[%clk 0:00:19]} 52. g8=Q {[%clk 0:02:06]}  b4 {[%clk 0:00:19]} 53. Qb3 {[%clk 0:02:05]}  Kb5 {[%clk 0:00:20]} 54. Kg4 {[%clk 0:02:05]}  Kc5 {[%clk 0:00:20]} 55. h4 {[%clk 0:02:05]}  b5 {[%clk 0:00:21]} 56. h5 {[%clk 0:02:04]} 1-0


[Site "https://www.chess.com"]

[Event "Titled Tuesday Blitz February 21 Early 2023"]
[White "Clawitter, Craig"]
[Black "Ziatdinov, Raset"]
[WhiteFideId "2023105"]
[BlackFideId "2015323"]
[WhiteElo "2050"]
[BlackElo "2101"]
[Result "0-1"]
[Round "05"]
[TimeControl "180+2"]
[Date "2023.02.21"]
[WhiteClock "0:00:07"]
[BlackClock "0:01:56"]

1. e4 {[%clk 0:02:52]}  c5 {[%clk 0:02:59]} 2. Nf3 {[%clk 0:02:53]}  Nc6 {[%clk 0:02:59]} 3. d4 {[%clk 0:02:53]}  cxd4 {[%clk 0:02:59]} 4. Nxd4 {[%clk 0:02:54]}  e5 {[%clk 0:02:59]} 5. Nb5 {[%clk 0:02:53]}  d6 {[%clk 0:03:00]} 6. N1c3 {[%clk 0:02:54]}  a6 {[%clk 0:03:00]} 7. Na3 {[%clk 0:02:54]}  b5 {[%clk 0:03:00]} 8. Nd5 {[%clk 0:02:52]}  Nge7 {[%clk 0:03:00]} 9. c4 {[%clk 0:02:48]}  Nd4 {[%clk 0:03:00]} 10. Nc2 {[%clk 0:02:28]}  Nxc2+ {[%clk 0:02:59]} 11. Qxc2 {[%clk 0:02:27]}  Nxd5 {[%clk 0:02:59]} 12. exd5 {[%clk 0:02:17]}  Be7 {[%clk 0:02:57]} 13. cxb5 {[%clk 0:02:16]}  O-O {[%clk 0:02:57]} 14. Bd2 {[%clk 0:01:57]}  Bb7 {[%clk 0:02:51]} 15. bxa6 {[%clk 0:01:56]}  Bxd5 {[%clk 0:02:50]} 16. Bd3 {[%clk 0:01:52]}  Bxg2 {[%clk 0:02:44]} 17. Rg1 {[%clk 0:01:39]}  e4 {[%clk 0:02:38]} 18. Rxg2 {[%clk 0:01:23]}  exd3 {[%clk 0:02:37]} 19. Qxd3 {[%clk 0:01:21]}  Bf6 {[%clk 0:02:35]} 20. Bc3 {[%clk 0:01:14]}  Re8+ {[%clk 0:02:35]} 21. Kf1 {[%clk 0:01:11]}  d5 {[%clk 0:02:32]} 22. Rd1 {[%clk 0:00:59]}  Qb6 {[%clk 0:02:14]} 23. Qf3 {[%clk 0:00:39]}  Qxa6+ {[%clk 0:02:08]} 24. Kg1 {[%clk 0:00:39]}  d4 {[%clk 0:02:09]} 25. Bd2 {[%clk 0:00:13]}  Qe2 {[%clk 0:02:08]} 26. Qxe2 {[%clk 0:00:11]}  Rxe2 {[%clk 0:02:08]} 27. f3 {[%clk 0:00:11]}  Rxg2+ {[%clk 0:02:04]} 28. Kxg2 {[%clk 0:00:12]}  Rxa2 {[%clk 0:02:04]} 29. Bc1 {[%clk 0:00:12]}  h5 {[%clk 0:02:03]} 30. Kg3 {[%clk 0:00:11]}  Ra1 {[%clk 0:02:01]} 31. h4 {[%clk 0:00:08]}  d3 {[%clk 0:01:59]} 32. Re1 {[%clk 0:00:07]}  Bxb2 {[%clk 0:01:56]} 33. Bd2 {[%clk 0:00:07]}  Rxe1 {[%clk 0:01:56]} 34. Bxe1 {[%clk 0:00:07]}  Bc1 {[%clk 0:01:56]} 0-1


[Site "https://www.chess.com"]

[Event "Titled Tuesday Blitz February 21 Early 2023"]
[White "Suduvasachmatai"]
[Black "Buscar, Michael"]
[BlackFideId "2603616"]
[WhiteElo "2100"]
[BlackElo "2041"]
[Result "0-1"]
[Round "05"]
[TimeControl "180+2"]
[Date "2023.02.21"]
[WhiteClock "0:00:40"]
[BlackClock "0:00:32"]

1. e4 {[%clk 0:02:55]}  c5 {[%clk 0:02:59]} 2. c3 {[%clk 0:02:53]}  Nf6 {[%clk 0:02:58]} 3. e5 {[%clk 0:02:52]}  Nd5 {[%clk 0:02:58]} 4. d4 {[%clk 0:02:52]}  cxd4 {[%clk 0:02:59]} 5. cxd4 {[%clk 0:02:53]}  Nc6 {[%clk 0:02:59]} 6. Nc3 {[%clk 0:02:52]}  Nb6 {[%clk 0:02:55]} 7. Nf3 {[%clk 0:02:50]}  d5 {[%clk 0:02:55]} 8. Bb5 {[%clk 0:02:47]}  Bg4 {[%clk 0:02:51]} 9. h3 {[%clk 0:02:32]}  Bh5 {[%clk 0:02:51]} 10. Be3 {[%clk 0:02:23]}  Rc8 {[%clk 0:02:50]} 11. Rc1 {[%clk 0:02:22]}  a6 {[%clk 0:02:50]} 12. Bxc6+ {[%clk 0:02:18]}  Rxc6 {[%clk 0:02:49]} 13. O-O {[%clk 0:02:14]}  e6 {[%clk 0:02:48]} 14. Na4 {[%clk 0:02:13]}  Bxf3 {[%clk 0:02:37]} 15. gxf3 {[%clk 0:02:10]}  Rxc1 {[%clk 0:02:30]} 16. Bxc1 {[%clk 0:02:09]}  Be7 {[%clk 0:02:26]} 17. Qb3 {[%clk 0:02:04]}  Nxa4 {[%clk 0:02:24]} 18. Qxa4+ {[%clk 0:02:04]}  Qd7 {[%clk 0:02:24]} 19. Qxd7+ {[%clk 0:02:01]}  Kxd7 {[%clk 0:02:24]} 20. Be3 {[%clk 0:02:00]}  Rc8 {[%clk 0:02:23]} 21. Rc1 {[%clk 0:01:59]}  Rxc1+ {[%clk 0:02:22]} 22. Bxc1 {[%clk 0:01:59]}  Kc6 {[%clk 0:02:23]} 23. Kf1 {[%clk 0:01:58]}  Kb5 {[%clk 0:02:23]} 24. Ke2 {[%clk 0:01:54]}  Kc4 {[%clk 0:02:24]} 25. Ke3 {[%clk 0:01:53]}  Bg5+ {[%clk 0:02:21]} 26. f4 {[%clk 0:01:53]}  Bd8 {[%clk 0:02:13]} 27. Bd2 {[%clk 0:01:52]}  Bb6 {[%clk 0:02:07]} 28. b3+ {[%clk 0:01:50]}  Kb5 {[%clk 0:02:05]} 29. Kd3 {[%clk 0:01:50]}  Bd8 {[%clk 0:01:59]} 30. Ke3 {[%clk 0:01:47]}  f5 {[%clk 0:01:39]} 31. a4+ {[%clk 0:01:40]}  Kc6 {[%clk 0:01:38]} 32. Bb4 {[%clk 0:01:39]}  g6 {[%clk 0:01:19]} 33. Bf8 {[%clk 0:01:36]}  Ba5 {[%clk 0:01:17]} 34. Kd3 {[%clk 0:01:31]}  Be1 {[%clk 0:01:14]} 35. Ke2 {[%clk 0:01:31]}  Bc3 {[%clk 0:01:14]} 36. Kd3 {[%clk 0:01:31]}  Bb2 {[%clk 0:01:09]} 37. Bh6 {[%clk 0:01:20]}  b5 {[%clk 0:00:58]} 38. Bf8 {[%clk 0:01:18]}  Kb6 {[%clk 0:00:52]} 39. Bc5+ {[%clk 0:01:10]}  Ka5 {[%clk 0:00:50]} 40. axb5 {[%clk 0:01:11]}  Kxb5 {[%clk 0:00:49]} 41. Kc2 {[%clk 0:01:09]}  Ba1 {[%clk 0:00:48]} 42. f3 {[%clk 0:01:02]}  a5 {[%clk 0:00:47]} 43. Ba7 {[%clk 0:00:48]}  a4 {[%clk 0:00:44]} 44. bxa4+ {[%clk 0:00:48]}  Kxa4 {[%clk 0:00:44]} 45. Bc5 {[%clk 0:00:49]}  Kb5 {[%clk 0:00:44]} 46. Ba7 {[%clk 0:00:48]}  Kc4 {[%clk 0:00:44]} 47. Bb8 {[%clk 0:00:43]}  Bxd4 {[%clk 0:00:44]} 48. Kd2 {[%clk 0:00:44]}  Bc3+ {[%clk 0:00:42]} 49. Ke2 {[%clk 0:00:44]}  d4 {[%clk 0:00:40]} 50. h4 {[%clk 0:00:44]}  d3+ {[%clk 0:00:37]} 51. Ke3 {[%clk 0:00:44]}  Bd4+ {[%clk 0:00:32]} 52. Kd2 {[%clk 0:00:43]}  Bf2 {[%clk 0:00:32]} 53. h5 {[%clk 0:00:40]}  gxh5 {[%clk 0:00:32]} 0-1


[Site "https://www.chess.com"]

[Event "Titled Tuesday Blitz February 21 Early 2023"]
[White "Davidson, Kevin"]
[Black "Tarnowska, Aleksandra"]
[WhiteFideId "2056810"]
[BlackFideId "1180967"]
[WhiteElo "2154"]
[BlackElo "1835"]
[Result "0-1"]
[Round "05"]
[TimeControl "180+2"]
[Date "2023.02.21"]
[WhiteClock "0:00:01"]
[BlackClock "0:00:03"]

1. e4 {[%clk 0:03:00]}  c5 {[%clk 0:03:00]} 2. Nf3 {[%clk 0:03:00]}  e6 {[%clk 0:03:00]} 3. d4 {[%clk 0:03:00]}  cxd4 {[%clk 0:03:01]} 4. Nxd4 {[%clk 0:03:01]}  a6 {[%clk 0:03:02]} 5. Nc3 {[%clk 0:03:02]}  Qc7 {[%clk 0:03:02]} 6. g3 {[%clk 0:03:01]}  Nf6 {[%clk 0:03:01]} 7. Bg2 {[%clk 0:03:01]}  d6 {[%clk 0:02:59]} 8. O-O {[%clk 0:03:01]}  Be7 {[%clk 0:03:00]} 9. f4 {[%clk 0:02:59]}  O-O {[%clk 0:03:01]} 10. g4 {[%clk 0:02:59]}  Nc6 {[%clk 0:02:57]} 11. Nb3 {[%clk 0:02:59]}  Rd8 {[%clk 0:02:50]} 12. g5 {[%clk 0:02:59]}  Nd7 {[%clk 0:02:49]} 13. Rf3 {[%clk 0:02:42]}  Nf8 {[%clk 0:02:42]} 14. f5 {[%clk 0:02:27]}  Ne5 {[%clk 0:02:13]} 15. Rg3 {[%clk 0:02:24]}  exf5 {[%clk 0:02:13]} 16. Nd5 {[%clk 0:02:24]}  Qd7 {[%clk 0:01:53]} 17. Nb6 {[%clk 0:02:16]}  Qc6 {[%clk 0:01:26]} 18. Nxa8 {[%clk 0:02:13]}  fxe4 {[%clk 0:01:26]} 19. Be3 {[%clk 0:02:01]}  Nc4 {[%clk 0:00:48]} 20. Bd4 {[%clk 0:01:54]}  Bf5 {[%clk 0:00:37]} 21. Qf1 {[%clk 0:01:14]}  Bg6 {[%clk 0:00:33]} 22. Rc3 {[%clk 0:00:46]}  b5 {[%clk 0:00:18]} 23. Nd2 {[%clk 0:00:29]}  Rxa8 {[%clk 0:00:16]} 24. Nxc4 {[%clk 0:00:29]}  bxc4 {[%clk 0:00:16]} 25. Rxc4 {[%clk 0:00:29]}  Qd5 {[%clk 0:00:14]} 26. Rd1 {[%clk 0:00:23]}  Qxg5 {[%clk 0:00:13]} 27. Rc7 {[%clk 0:00:14]}  Bd8 {[%clk 0:00:09]} 28. Rb7 {[%clk 0:00:11]}  Ne6 {[%clk 0:00:09]} 29. Kh1 {[%clk 0:00:06]}  d5 {[%clk 0:00:04]} 30. Bf2 {[%clk 0:00:04]}  Bf6 {[%clk 0:00:04]} 31. Bg3 {[%clk 0:00:04]}  Rd8 {[%clk 0:00:03]} 32. Ra7 {[%clk 0:00:02]}  Qh5 {[%clk 0:00:03]} 33. Rxa6 {[%clk 0:00:02]}  d4 {[%clk 0:00:03]} 34. Rb6 {[%clk 0:00:01]}  e3 {[%clk 0:00:03]} 35. Rb3 {[%clk 0:00:01]}  e2 {[%clk 0:00:03]} 0-1


[Site "https://www.chess.com"]

[Event "Titled Tuesday Blitz February 21 Early 2023"]
[White "Calcada, Lucas Galvan"]
[Black "parintele_chess"]
[WhiteFideId "22746099"]
[WhiteElo "1739"]
[BlackElo "2249"]
[Result "1-0"]
[Round "05"]
[TimeControl "180+2"]
[Date "2023.02.21"]
[WhiteClock "0:00:44"]
[BlackClock "0:00:06"]

1. d4 {[%clk 0:02:53]}  e5 {[%clk 0:01:17]} 2. dxe5 {[%clk 0:02:49]}  Bc5 {[%clk 0:01:17]} 3. Nf3 {[%clk 0:02:48]}  d6 {[%clk 0:01:17]} 4. exd6 {[%clk 0:02:47]}  Ne7 {[%clk 0:01:17]} 5. e4 {[%clk 0:02:37]}  cxd6 {[%clk 0:01:12]} 6. Bd3 {[%clk 0:02:36]}  O-O {[%clk 0:01:13]} 7. O-O {[%clk 0:02:36]}  Bg4 {[%clk 0:01:13]} 8. Nbd2 {[%clk 0:02:34]}  Nbc6 {[%clk 0:01:13]} 9. h3 {[%clk 0:02:33]}  Bh5 {[%clk 0:01:13]} 10. Re1 {[%clk 0:02:32]}  Ne5 {[%clk 0:01:12]} 11. Be2 {[%clk 0:02:30]}  Bg6 {[%clk 0:01:10]} 12. Bd3 {[%clk 0:02:23]}  Qb6 {[%clk 0:01:08]} 13. Qe2 {[%clk 0:02:21]}  Bh5 {[%clk 0:01:04]} 14. Nc4 {[%clk 0:02:11]}  Bxf3 {[%clk 0:00:49]} 15. gxf3 {[%clk 0:02:02]}  Nxc4 {[%clk 0:00:44]} 16. Bxc4 {[%clk 0:02:00]}  d5 {[%clk 0:00:18]} 17. exd5 {[%clk 0:01:54]}  Qg6+ {[%clk 0:00:18]} 18. Kh2 {[%clk 0:01:47]}  Bd6+ {[%clk 0:00:17]} 19. f4 {[%clk 0:01:45]}  Nf5 {[%clk 0:00:15]} 20. Bd3 {[%clk 0:01:43]}  Qf6 {[%clk 0:00:12]} 21. Qg4 {[%clk 0:01:34]}  Nd4 {[%clk 0:00:06]} 22. Be3 {[%clk 0:01:28]}  g6 {[%clk 0:00:02]} 23. Rg1 {[%clk 0:01:25]}  Rae8 {[%clk 0:00:01]} 24. Kh1 {[%clk 0:01:19]}  Kh8 {[%clk 0:00:01]} 25. f5 {[%clk 0:01:09]}  Nxf5 {[%clk 0:00:01]} 26. Bxf5 {[%clk 0:01:08]}  gxf5 {[%clk 0:00:02]} 27. Bd4 {[%clk 0:01:05]}  Be5 {[%clk 0:00:02]} 28. Bxe5 {[%clk 0:01:02]}  Rxe5 {[%clk 0:00:03]} 29. Qd4 {[%clk 0:00:59]}  Re6 {[%clk 0:00:02]} 30. Qxf6+ {[%clk 0:00:57]}  Rxf6 {[%clk 0:00:03]} 31. c4 {[%clk 0:00:55]}  Rd8 {[%clk 0:00:04]} 32. Rge1 {[%clk 0:00:53]}  b5 {[%clk 0:00:04]} 33. b3 {[%clk 0:00:52]}  bxc4 {[%clk 0:00:04]} 34. bxc4 {[%clk 0:00:53]}  Rc8 {[%clk 0:00:05]} 35. Rac1 {[%clk 0:00:52]}  Kg7 {[%clk 0:00:05]} 36. c5 {[%clk 0:00:51]}  Ra6 {[%clk 0:00:05]} 37. d6 {[%clk 0:00:47]}  Rxa2 {[%clk 0:00:05]} 38. d7 {[%clk 0:00:47]}  Rd8 {[%clk 0:00:05]} 39. c6 {[%clk 0:00:46]}  Rxf2 {[%clk 0:00:06]} 40. c7 {[%clk 0:00:46]}  Re8 {[%clk 0:00:06]} 41. dxe8=Q {[%clk 0:00:44]} 1-0


[Site "https://www.chess.com"]

[Event "Titled Tuesday Blitz February 21 Early 2023"]
[White "Gardezi, Arsal"]
[Black "Mitrovic, Darko R"]
[WhiteFideId "30949521"]
[BlackFideId "927023"]
[WhiteElo "2093"]
[BlackElo "2220"]
[Result "1-0"]
[Round "05"]
[TimeControl "180+2"]
[Date "2023.02.21"]
[WhiteClock "0:02:22"]
[BlackClock "0:00:08"]

1. Nf3 {[%clk 0:03:00]}  c5 {[%clk 0:02:59]} 2. c4 {[%clk 0:02:57]}  Nc6 {[%clk 0:02:59]} 3. Nc3 {[%clk 0:02:57]}  e5 {[%clk 0:02:58]} 4. e3 {[%clk 0:02:56]}  f5 {[%clk 0:02:56]} 5. d4 {[%clk 0:02:54]}  cxd4 {[%clk 0:02:56]} 6. exd4 {[%clk 0:02:54]}  e4 {[%clk 0:02:56]} 7. Ne5 {[%clk 0:02:53]}  Nf6 {[%clk 0:02:55]} 8. Be2 {[%clk 0:02:52]}  Bb4 {[%clk 0:02:55]} 9. O-O {[%clk 0:02:51]}  Bxc3 {[%clk 0:02:54]} 10. bxc3 {[%clk 0:02:51]}  O-O {[%clk 0:02:54]} 11. c5 {[%clk 0:02:43]}  Nxe5 {[%clk 0:02:21]} 12. dxe5 {[%clk 0:02:43]}  Ne8 {[%clk 0:02:20]} 13. Qd5+ {[%clk 0:02:34]}  Kh8 {[%clk 0:02:18]} 14. Rd1 {[%clk 0:02:33]}  Qe7 {[%clk 0:02:10]} 15. Ba3 {[%clk 0:02:31]}  Nc7 {[%clk 0:02:08]} 16. Qb3 {[%clk 0:02:29]}  Qe8 {[%clk 0:00:45]} 17. c6 {[%clk 0:02:27]}  dxc6 {[%clk 0:00:22]} 18. Bxf8 {[%clk 0:02:26]}  Qxf8 {[%clk 0:00:22]} 19. Rd6 {[%clk 0:02:25]}  Qe8 {[%clk 0:00:10]} 20. Rad1 {[%clk 0:02:26]}  Ne6 {[%clk 0:00:08]} 21. Bc4 {[%clk 0:02:22]} 1-0


[Site "https://www.chess.com"]

[Event "Titled Tuesday Blitz February 21 Early 2023"]
[White "Nugumanov, Bakhtiyar"]
[Black "Dias, Joao Batista"]
[WhiteFideId "13701797"]
[BlackFideId "2108240"]
[WhiteElo "2316"]
[BlackElo "1796"]
[Result "0-1"]
[Round "05"]
[TimeControl "180+2"]
[Date "2023.02.21"]
[WhiteClock "0:00:56"]
[BlackClock "0:01:32"]

1. Nf3 {[%clk 0:03:00]}  Nf6 {[%clk 0:02:57]} 2. c4 {[%clk 0:02:58]}  c5 {[%clk 0:02:56]} 3. Nc3 {[%clk 0:02:57]}  g6 {[%clk 0:02:56]} 4. e4 {[%clk 0:02:54]}  d6 {[%clk 0:02:54]} 5. d4 {[%clk 0:02:55]}  cxd4 {[%clk 0:02:54]} 6. Nxd4 {[%clk 0:02:56]}  Bg7 {[%clk 0:02:54]} 7. Be2 {[%clk 0:02:56]}  O-O {[%clk 0:02:54]} 8. O-O {[%clk 0:02:57]}  Nc6 {[%clk 0:02:53]} 9. Nc2 {[%clk 0:02:55]}  Be6 {[%clk 0:02:51]} 10. b3 {[%clk 0:02:54]}  a6 {[%clk 0:02:49]} 11. Bb2 {[%clk 0:02:44]}  Rc8 {[%clk 0:02:41]} 12. Re1 {[%clk 0:02:19]}  Re8 {[%clk 0:02:40]} 13. Bf1 {[%clk 0:02:19]}  Qa5 {[%clk 0:02:31]} 14. Nd5 {[%clk 0:02:16]}  Bxd5 {[%clk 0:02:28]} 15. exd5 {[%clk 0:01:53]}  Nb8 {[%clk 0:02:25]} 16. Nd4 {[%clk 0:01:40]}  Nbd7 {[%clk 0:02:22]} 17. Qf3 {[%clk 0:01:37]}  Nh5 {[%clk 0:02:09]} 18. Bc3 {[%clk 0:01:28]}  Qc7 {[%clk 0:02:06]} 19. Rad1 {[%clk 0:01:21]}  Ne5 {[%clk 0:02:05]} 20. Qe3 {[%clk 0:01:10]}  Nf6 {[%clk 0:02:01]} 21. h3 {[%clk 0:01:04]}  Ned7 {[%clk 0:01:44]} 22. g3 {[%clk 0:00:56]}  Nc5 {[%clk 0:01:32]} 0-1


[Site "https://www.chess.com"]